[Event "Titled Tuesday Blitz February 22 Early 2022"]
[White "Tillis., Bryan"]
[Black "Zanette, Edgard Vinicius"]
[WhiteFideId "2059053"]
[BlackFideId "2109263"]
[WhiteElo "2354"]
[BlackElo "2182"]
[Result "1-0"]
[Round "10"]
[TimeControl "180+1"]
[Date "2022.02.22"]
[WhiteClock "0:00:39"]
[BlackClock "0:01:02"]

1. d4 {[%clk 0:03:00]}  Nf6 {[%clk 0:02:59]} 2. g3 {[%clk 0:02:59]}  e6 {[%clk 0:02:59]} 3. Bg2 {[%clk 0:02:59]}  d5 {[%clk 0:02:58]} 4. Nf3 {[%clk 0:02:59]}  Be7 {[%clk 0:02:58]} 5. O-O {[%clk 0:02:59]}  O-O {[%clk 0:02:59]} 6. c4 {[%clk 0:03:00]}  dxc4 {[%clk 0:02:58]} 7. Ne5 {[%clk 0:02:58]}  a6 {[%clk 0:02:57]} 8. Nxc4 {[%clk 0:02:57]}  c5 {[%clk 0:02:57]} 9. dxc5 {[%clk 0:02:56]}  Bxc5 {[%clk 0:02:56]} 10. Nc3 {[%clk 0:02:56]}  Qxd1 {[%clk 0:02:53]} 11. Rxd1 {[%clk 0:02:56]}  Nc6 {[%clk 0:02:50]} 12. Bg5 {[%clk 0:02:51]}  h6 {[%clk 0:02:49]} 13. Bxf6 {[%clk 0:02:51]}  gxf6 {[%clk 0:02:50]} 14. Ne4 {[%clk 0:02:45]}  Be7 {[%clk 0:02:48]} 15. Ned6 {[%clk 0:02:41]}  Rd8 {[%clk 0:02:24]} 16. Bxc6 {[%clk 0:02:26]}  bxc6 {[%clk 0:02:22]} 17. Nxc8 {[%clk 0:02:26]}  Raxc8 {[%clk 0:02:19]} 18. b3 {[%clk 0:02:25]}  Rxd1+ {[%clk 0:02:16]} 19. Rxd1 {[%clk 0:02:24]}  Rd8 {[%clk 0:02:17]} 20. Rxd8+ {[%clk 0:02:24]}  Bxd8 {[%clk 0:02:18]} 21. f3 {[%clk 0:02:21]}  Kf8 {[%clk 0:02:18]} 22. e4 {[%clk 0:02:20]}  Ke7 {[%clk 0:02:17]} 23. Kf2 {[%clk 0:02:21]}  Bc7 {[%clk 0:02:15]} 24. Ke3 {[%clk 0:02:19]}  Kd7 {[%clk 0:02:06]} 25. f4 {[%clk 0:02:16]}  Ke7 {[%clk 0:02:02]} 26. f5 {[%clk 0:02:11]}  Be5 {[%clk 0:01:53]} 27. Kf3 {[%clk 0:02:07]}  h5 {[%clk 0:01:47]} 28. Kg2 {[%clk 0:02:05]}  Kf8 {[%clk 0:01:35]} 29. Nxe5 {[%clk 0:01:25]}  fxe5 {[%clk 0:01:35]} 30. fxe6 {[%clk 0:01:25]}  f6 {[%clk 0:01:35]} 31. g4 {[%clk 0:01:10]}  hxg4 {[%clk 0:01:32]} 32. Kg3 {[%clk 0:01:11]}  Ke7 {[%clk 0:01:23]} 33. Kxg4 {[%clk 0:01:11]}  Kxe6 {[%clk 0:01:24]} 34. h4 {[%clk 0:00:51]}  c5 {[%clk 0:01:17]} 35. a3 {[%clk 0:00:46]}  a5 {[%clk 0:01:15]} 36. a4 {[%clk 0:00:46]}  f5+ {[%clk 0:01:03]} 37. exf5+ {[%clk 0:00:45]}  Kf6 {[%clk 0:01:04]} 38. h5 {[%clk 0:00:42]}  e4 {[%clk 0:01:02]} 39. h6 {[%clk 0:00:39]}  e3 {[%clk 0:01:02]} 40. Kf3 {[%clk 0:00:39]} 1-0


[Site "https://www.chess.com"]

[Event "Titled Tuesday Blitz February 22 Early 2022"]
[White "Tsatsalashvili, Keti"]
[Black "Glavina, Pablo"]
[WhiteFideId "13603434"]
[BlackFideId "100234"]
[WhiteElo "2246"]
[BlackElo "2369"]
[Result "0-1"]
[Round "10"]
[TimeControl "180+1"]
[Date "2022.02.22"]
[WhiteClock "0:00:10"]
[BlackClock "0:00:04"]

1. d4 {[%clk 0:03:00]}  Nf6 {[%clk 0:02:59]} 2. Nf3 {[%clk 0:02:59]}  e6 {[%clk 0:02:57]} 3. c4 {[%clk 0:02:59]}  Bb4+ {[%clk 0:02:57]} 4. Nbd2 {[%clk 0:02:54]}  d5 {[%clk 0:02:56]} 5. g3 {[%clk 0:02:53]}  O-O {[%clk 0:02:48]} 6. Bg2 {[%clk 0:02:51]}  dxc4 {[%clk 0:02:48]} 7. Qc2 {[%clk 0:02:45]}  b5 {[%clk 0:01:51]} 8. O-O {[%clk 0:02:38]}  Bb7 {[%clk 0:01:46]} 9. e4 {[%clk 0:02:27]}  c5 {[%clk 0:01:41]} 10. e5 {[%clk 0:02:23]}  Nd5 {[%clk 0:01:34]} 11. a3 {[%clk 0:02:17]}  Bxd2 {[%clk 0:01:15]} 12. Bxd2 {[%clk 0:02:18]}  cxd4 {[%clk 0:01:16]} 13. Nxd4 {[%clk 0:02:17]}  a6 {[%clk 0:01:13]} 14. Rad1 {[%clk 0:02:03]}  Nd7 {[%clk 0:01:13]} 15. f4 {[%clk 0:01:54]}  Qb6 {[%clk 0:01:13]} 16. Bc1 {[%clk 0:01:44]}  Nc5 {[%clk 0:01:14]} 17. Kh1 {[%clk 0:01:41]}  Nd3 {[%clk 0:01:10]} 18. Rxd3 {[%clk 0:01:33]}  cxd3 {[%clk 0:01:09]} 19. Qxd3 {[%clk 0:01:34]}  Rfd8 {[%clk 0:01:04]} 20. Rd1 {[%clk 0:01:12]}  Rac8 {[%clk 0:01:01]} 21. Be4 {[%clk 0:01:05]}  g6 {[%clk 0:00:25]} 22. h4 {[%clk 0:00:33]}  Ne7 {[%clk 0:00:25]} 23. Be3 {[%clk 0:00:26]}  Nf5 {[%clk 0:00:12]} 24. Bf2 {[%clk 0:00:21]}  Rd7 {[%clk 0:00:05]} 25. Kh2 {[%clk 0:00:13]}  Rcd8 {[%clk 0:00:05]} 26. Nxf5 {[%clk 0:00:12]}  Qxf2+ {[%clk 0:00:04]} 27. Kh3 {[%clk 0:00:12]}  Rxd3 {[%clk 0:00:04]} 28. Rxd3 {[%clk 0:00:09]}  Rxd3 {[%clk 0:00:04]} 29. Bxd3 {[%clk 0:00:10]}  gxf5 {[%clk 0:00:04]} 30. a4 {[%clk 0:00:10]}  Qg2# {[%clk 0:00:04]} 0-1


[Site "https://www.chess.com"]

[Event "Titled Tuesday Blitz February 22 Early 2022"]
[White "Vlassov, Nikolai"]
[Black "Neiksans, Arturs"]
[WhiteFideId "4103360"]
[BlackFideId "11601388"]
[WhiteElo "2407"]
[BlackElo "2447"]
[Result "1-0"]
[Round "10"]
[TimeControl "180+1"]
[Date "2022.02.22"]
[WhiteClock "0:00:06"]
[BlackClock "0:00:03"]

1. e4 {[%clk 0:03:00]}  c5 {[%clk 0:02:59]} 2. c3 {[%clk 0:03:00]}  Nf6 {[%clk 0:02:59]} 3. e5 {[%clk 0:03:00]}  Nd5 {[%clk 0:02:59]} 4. d4 {[%clk 0:03:01]}  cxd4 {[%clk 0:03:00]} 5. cxd4 {[%clk 0:03:01]}  d6 {[%clk 0:03:00]} 6. Bc4 {[%clk 0:03:00]}  Nb6 {[%clk 0:02:55]} 7. Bb3 {[%clk 0:03:00]}  dxe5 {[%clk 0:02:55]} 8. Qh5 {[%clk 0:03:00]}  e6 {[%clk 0:02:50]} 9. dxe5 {[%clk 0:03:00]}  Nc6 {[%clk 0:02:48]} 10. Nc3 {[%clk 0:03:00]}  Nd4 {[%clk 0:02:44]} 11. Nf3 {[%clk 0:02:58]}  Nxf3+ {[%clk 0:02:39]} 12. Qxf3 {[%clk 0:02:56]}  Be7 {[%clk 0:02:35]} 13. O-O {[%clk 0:02:56]}  O-O {[%clk 0:02:35]} 14. Bf4 {[%clk 0:02:54]}  Qe8 {[%clk 0:02:28]} 15. Bc2 {[%clk 0:02:49]}  Bd7 {[%clk 0:02:11]} 16. Qd3 {[%clk 0:02:35]}  g6 {[%clk 0:02:09]} 17. Bh6 {[%clk 0:02:34]}  Rd8 {[%clk 0:02:03]} 18. Bxf8 {[%clk 0:02:32]}  Qxf8 {[%clk 0:02:03]} 19. Rad1 {[%clk 0:02:25]}  Rc8 {[%clk 0:01:46]} 20. Bb3 {[%clk 0:02:20]}  Bc6 {[%clk 0:01:46]} 21. Ne4 {[%clk 0:02:18]}  Nd7 {[%clk 0:01:42]} 22. f4 {[%clk 0:02:11]}  Bxe4 {[%clk 0:01:35]} 23. Qxe4 {[%clk 0:02:11]}  Nc5 {[%clk 0:01:36]} 24. Qf3 {[%clk 0:02:08]}  Qe8 {[%clk 0:01:33]} 25. Rc1 {[%clk 0:02:04]}  Qb5 {[%clk 0:01:31]} 26. Rfd1 {[%clk 0:01:59]}  a5 {[%clk 0:01:27]} 27. Qf2 {[%clk 0:01:41]}  Ra8 {[%clk 0:01:19]} 28. Bc4 {[%clk 0:01:39]}  Qc6 {[%clk 0:01:17]} 29. Be2 {[%clk 0:01:34]}  Qb6 {[%clk 0:01:07]} 30. Kh1 {[%clk 0:01:30]}  Qxb2 {[%clk 0:01:03]} 31. a4 {[%clk 0:01:07]}  b6 {[%clk 0:00:50]} 32. Rb1 {[%clk 0:01:00]}  Qc2 {[%clk 0:00:49]} 33. Rxb6 {[%clk 0:00:58]}  Qxa4 {[%clk 0:00:46]} 34. Bf3 {[%clk 0:00:54]}  Rc8 {[%clk 0:00:44]} 35. Rdb1 {[%clk 0:00:51]}  Qxf4 {[%clk 0:00:42]} 36. Rb8 {[%clk 0:00:46]}  Rxb8 {[%clk 0:00:42]} 37. Rxb8+ {[%clk 0:00:46]}  Kg7 {[%clk 0:00:42]} 38. Ra8 {[%clk 0:00:36]}  a4 {[%clk 0:00:40]} 39. Ra7 {[%clk 0:00:31]}  Nd3 {[%clk 0:00:27]} 40. Qc2 {[%clk 0:00:23]}  Bc5 {[%clk 0:00:09]} 41. Rxf7+ {[%clk 0:00:08]}  Qxf7 {[%clk 0:00:08]} 42. Qxd3 {[%clk 0:00:09]}  Qa7 {[%clk 0:00:08]} 43. Qc4 {[%clk 0:00:07]}  a3 {[%clk 0:00:09]} 44. Qxe6 {[%clk 0:00:08]}  Qe7 {[%clk 0:00:02]} 45. Qxe7+ {[%clk 0:00:07]}  Bxe7 {[%clk 0:00:03]} 46. Bd5 {[%clk 0:00:07]}  Kh6 {[%clk 0:00:03]} 47. g3 {[%clk 0:00:07]}  Kg5 {[%clk 0:00:04]} 48. Be6 {[%clk 0:00:07]}  h5 {[%clk 0:00:03]} 49. Kg2 {[%clk 0:00:07]}  Kh6 {[%clk 0:00:03]} 50. Kf3 {[%clk 0:00:07]}  g5 {[%clk 0:00:03]} 51. h3 {[%clk 0:00:07]}  Kg7 {[%clk 0:00:03]} 52. Ke4 {[%clk 0:00:07]}  Kg6 {[%clk 0:00:04]} 53. g4 {[%clk 0:00:08]}  h4 {[%clk 0:00:04]} 54. Ba2 {[%clk 0:00:07]}  Bb4 {[%clk 0:00:03]} 55. Kd5 {[%clk 0:00:07]}  Kf7 {[%clk 0:00:03]} 56. Kc4 {[%clk 0:00:04]}  Bf8 {[%clk 0:00:01]} 57. Kd5 {[%clk 0:00:04]}  Ke8 {[%clk 0:00:02]} 58. Bb3 {[%clk 0:00:04]}  Ke7 {[%clk 0:00:02]} 59. Ba2 {[%clk 0:00:04]}  Bg7 {[%clk 0:00:03]} 60. Bb3 {[%clk 0:00:05]}  Bh8 {[%clk 0:00:03]} 61. Ba2 {[%clk 0:00:05]}  Bg7 {[%clk 0:00:04]} 62. Ke4 {[%clk 0:00:05]}  Kd8 {[%clk 0:00:02]} 63. Kf5 {[%clk 0:00:05]}  Ke8 {[%clk 0:00:02]} 64. e6 {[%clk 0:00:04]}  Ke7 {[%clk 0:00:02]} 65. Kxg5 {[%clk 0:00:04]}  Bf6+ {[%clk 0:00:03]} 66. Kh5 {[%clk 0:00:04]}  Be5 {[%clk 0:00:02]} 67. Kxh4 {[%clk 0:00:04]}  Kf6 {[%clk 0:00:02]} 68. Kh5 {[%clk 0:00:05]}  Bf4 {[%clk 0:00:02]} 69. h4 {[%clk 0:00:05]}  Be3 {[%clk 0:00:02]} 70. g5+ {[%clk 0:00:05]}  Ke7 {[%clk 0:00:03]} 71. Kg6 {[%clk 0:00:05]}  Bf2 {[%clk 0:00:02]} 72. h5 {[%clk 0:00:05]}  Bd4 {[%clk 0:00:02]} 73. h6 {[%clk 0:00:06]}  Ke8 {[%clk 0:00:03]} 74. Kh7 {[%clk 0:00:06]} 1-0


[Site "https://www.chess.com"]

[Event "Titled Tuesday Blitz February 22 Early 2022"]
[White "Vokhidov, Shamsiddin"]
[Black "Grischuk, Alexander"]
[WhiteFideId "14204223"]
[BlackFideId "4126025"]
[WhiteElo "2611"]
[BlackElo "2762"]
[Result "1/2-1/2"]
[Round "10"]
[TimeControl "180+1"]
[Date "2022.02.22"]
[WhiteClock "0:01:39"]
[BlackClock "0:01:31"]

1. e4 {[%clk 0:03:00]}  e6 {[%clk 0:03:00]} 2. d4 {[%clk 0:03:01]}  d5 {[%clk 0:03:00]} 3. Nc3 {[%clk 0:03:02]}  Nf6 {[%clk 0:03:00]} 4. Bg5 {[%clk 0:03:01]}  dxe4 {[%clk 0:02:59]} 5. Nxe4 {[%clk 0:03:02]}  Be7 {[%clk 0:02:59]} 6. Nxf6+ {[%clk 0:03:00]}  Bxf6 {[%clk 0:02:59]} 7. Bxf6 {[%clk 0:03:01]}  Qxf6 {[%clk 0:03:00]} 8. Nf3 {[%clk 0:03:01]}  c5 {[%clk 0:02:59]} 9. Bb5+ {[%clk 0:02:49]}  Bd7 {[%clk 0:02:59]} 10. Qd3 {[%clk 0:02:41]}  cxd4 {[%clk 0:02:48]} 11. O-O-O {[%clk 0:02:28]}  Nc6 {[%clk 0:02:31]} 12. Nxd4 {[%clk 0:02:24]}  Qxd4 {[%clk 0:02:09]} 13. Qxd4 {[%clk 0:02:23]}  Nxd4 {[%clk 0:02:10]} 14. Bxd7+ {[%clk 0:02:24]}  Kxd7 {[%clk 0:02:11]} 15. Rxd4+ {[%clk 0:02:24]}  Ke7 {[%clk 0:02:12]} 16. Rhd1 {[%clk 0:02:23]}  Rhd8 {[%clk 0:02:12]} 17. Rxd8 {[%clk 0:02:19]}  Rxd8 {[%clk 0:02:13]} 18. Rxd8 {[%clk 0:02:19]}  Kxd8 {[%clk 0:02:14]} 19. c4 {[%clk 0:02:20]}  Kd7 {[%clk 0:02:12]} 20. b4 {[%clk 0:02:20]}  e5 {[%clk 0:02:08]} 21. Kd2 {[%clk 0:02:19]}  f5 {[%clk 0:02:06]} 22. Kd3 {[%clk 0:02:17]}  Kd6 {[%clk 0:02:02]} 23. f3 {[%clk 0:02:14]}  h5 {[%clk 0:01:40]} 24. h4 {[%clk 0:02:13]}  b6 {[%clk 0:01:37]} 25. a3 {[%clk 0:02:09]}  Kc6 {[%clk 0:01:32]} 26. Kc3 {[%clk 0:02:07]}  Kd6 {[%clk 0:01:31]} 27. Kd3 {[%clk 0:02:02]}  Kc6 {[%clk 0:01:31]} 28. Kc3 {[%clk 0:01:43]}  Kd6 {[%clk 0:01:31]} 29. Kd3 {[%clk 0:01:39]} 1/2-1/2


[Site "https://www.chess.com"]

[Event "Titled Tuesday Blitz February 22 Early 2022"]
[White "Wagner, Dennis"]
[Black "Obolentseva, Alexandra"]
[WhiteFideId "24650684"]
[BlackFideId "24153648"]
[WhiteElo "2355"]
[BlackElo "2113"]
[Result "1/2-1/2"]
[Round "10"]
[TimeControl "180+1"]
[Date "2022.02.22"]
[WhiteClock "0:00:07"]
[BlackClock "0:00:45"]

1. Nf3 {[%clk 0:03:00]}  Nf6 {[%clk 0:03:00]} 2. g3 {[%clk 0:02:56]}  g6 {[%clk 0:03:00]} 3. Bg2 {[%clk 0:02:56]}  Bg7 {[%clk 0:03:00]} 4. O-O {[%clk 0:02:57]}  O-O {[%clk 0:03:01]} 5. d4 {[%clk 0:02:57]}  d6 {[%clk 0:03:01]} 6. Re1 {[%clk 0:02:53]}  c5 {[%clk 0:03:00]} 7. dxc5 {[%clk 0:02:36]}  dxc5 {[%clk 0:03:01]} 8. Qxd8 {[%clk 0:02:37]}  Rxd8 {[%clk 0:03:02]} 9. e4 {[%clk 0:02:37]}  Bd7 {[%clk 0:02:44]} 10. c3 {[%clk 0:02:31]}  Nc6 {[%clk 0:02:38]} 11. Bf4 {[%clk 0:02:19]}  Nh5 {[%clk 0:02:36]} 12. Be3 {[%clk 0:02:19]}  b6 {[%clk 0:02:36]} 13. Nbd2 {[%clk 0:02:19]}  Bg4 {[%clk 0:02:29]} 14. h3 {[%clk 0:02:17]}  Bxf3 {[%clk 0:02:21]} 15. Nxf3 {[%clk 0:01:49]}  Rac8 {[%clk 0:02:17]} 16. Kf1 {[%clk 0:01:26]}  Na5 {[%clk 0:02:15]} 17. Nd2 {[%clk 0:01:22]}  Rd7 {[%clk 0:02:07]} 18. Red1 {[%clk 0:01:13]}  Rcd8 {[%clk 0:02:07]} 19. Ke2 {[%clk 0:01:13]}  Nf6 {[%clk 0:01:58]} 20. g4 {[%clk 0:00:54]}  Ne8 {[%clk 0:01:55]} 21. Rac1 {[%clk 0:00:41]}  Nd6 {[%clk 0:01:54]} 22. Rc2 {[%clk 0:00:16]}  Ndc4 {[%clk 0:01:53]} 23. Nxc4 {[%clk 0:00:14]}  Rxd1 {[%clk 0:01:50]} 24. Nxa5 {[%clk 0:00:14]}  bxa5 {[%clk 0:01:51]} 25. Bxc5 {[%clk 0:00:15]}  Ra1 {[%clk 0:01:46]} 26. Bxe7 {[%clk 0:00:08]}  Rd7 {[%clk 0:01:44]} 27. Ba3 {[%clk 0:00:08]}  Bh6 {[%clk 0:01:36]} 28. e5 {[%clk 0:00:07]}  Rdd1 {[%clk 0:01:28]} 29. Bc6 {[%clk 0:00:04]}  Re1+ {[%clk 0:01:26]} 30. Kf3 {[%clk 0:00:04]}  Rxe5 {[%clk 0:01:25]} 31. Kg3 {[%clk 0:00:04]}  Rg1+ {[%clk 0:01:23]} 32. Kf3 {[%clk 0:00:04]}  Re6 {[%clk 0:01:21]} 33. Bd5 {[%clk 0:00:04]}  Rf6+ {[%clk 0:01:22]} 34. Ke2 {[%clk 0:00:04]}  Rc1 {[%clk 0:01:19]} 35. Rxc1 {[%clk 0:00:04]}  Bxc1 {[%clk 0:01:20]} 36. c4 {[%clk 0:00:05]}  Bf4 {[%clk 0:01:14]} 37. Be7 {[%clk 0:00:04]}  Rb6 {[%clk 0:01:12]} 38. b3 {[%clk 0:00:05]}  Bd6 {[%clk 0:01:06]} 39. Bd8 {[%clk 0:00:05]}  Rb8 {[%clk 0:01:04]} 40. Bxa5 {[%clk 0:00:05]}  Bc5 {[%clk 0:01:02]} 41. f4 {[%clk 0:00:05]}  Kg7 {[%clk 0:01:02]} 42. Bc3+ {[%clk 0:00:04]}  f6 {[%clk 0:01:02]} 43. g5 {[%clk 0:00:04]}  Be7 {[%clk 0:01:01]} 44. Kd3 {[%clk 0:00:05]}  h6 {[%clk 0:01:01]} 45. h4 {[%clk 0:00:05]}  hxg5 {[%clk 0:01:00]} 46. hxg5 {[%clk 0:00:06]}  Rb6 {[%clk 0:00:57]} 47. Bd4 {[%clk 0:00:06]}  Ra6 {[%clk 0:00:55]} 48. a4 {[%clk 0:00:05]}  Kf8 {[%clk 0:00:54]} 49. gxf6 {[%clk 0:00:04]}  Bxf6 {[%clk 0:00:54]} 50. c5 {[%clk 0:00:04]}  Bxd4 {[%clk 0:00:53]} 51. Kxd4 {[%clk 0:00:05]}  Rf6 {[%clk 0:00:51]} 52. Ke5 {[%clk 0:00:04]}  Ke7 {[%clk 0:00:52]} 53. Be4 {[%clk 0:00:04]}  Re6+ {[%clk 0:00:49]} 54. Kd4 {[%clk 0:00:03]}  Rf6 {[%clk 0:00:50]} 55. Ke5 {[%clk 0:00:04]}  Re6+ {[%clk 0:00:49]} 56. Kd4 {[%clk 0:00:04]}  Rf6 {[%clk 0:00:50]} 57. Kd3 {[%clk 0:00:04]}  Rxf4 {[%clk 0:00:49]} 58. Bxg6 {[%clk 0:00:05]}  Kd8 {[%clk 0:00:50]} 59. Kc3 {[%clk 0:00:05]}  Kc7 {[%clk 0:00:50]} 60. b4 {[%clk 0:00:05]}  a5 {[%clk 0:00:50]} 61. b5 {[%clk 0:00:05]}  Rxa4 {[%clk 0:00:50]} 62. Bd3 {[%clk 0:00:04]}  Rh4 {[%clk 0:00:46]} 63. Bc4 {[%clk 0:00:05]}  Rh3+ {[%clk 0:00:45]} 64. Kd4 {[%clk 0:00:05]}  Rh4+ {[%clk 0:00:45]} 65. Kc3 {[%clk 0:00:05]}  Rh3+ {[%clk 0:00:45]} 66. Kd4 {[%clk 0:00:06]}  Rh4+ {[%clk 0:00:45]} 67. Kc3 {[%clk 0:00:07]} 1/2-1/2


[Site "https://www.chess.com"]

[Event "Titled Tuesday Blitz February 22 Early 2022"]
[White "Weishaeutel, Moritz"]
[Black "Golubka, Petro"]
[WhiteFideId "12967300"]
[BlackFideId "14114224"]
[WhiteElo "2002"]
[BlackElo "2392"]
[Result "0-1"]
[Round "10"]
[TimeControl "180+1"]
[Date "2022.02.22"]
[WhiteClock "0:01:07"]
[BlackClock "0:02:28"]

1. e4 {[%clk 0:03:00]}  e5 {[%clk 0:02:58]} 2. Nf3 {[%clk 0:03:00]}  Nc6 {[%clk 0:02:59]} 3. Nc3 {[%clk 0:03:01]}  Nf6 {[%clk 0:02:59]} 4. a3 {[%clk 0:03:01]}  a6 {[%clk 0:02:57]} 5. d4 {[%clk 0:03:01]}  d5 {[%clk 0:02:57]} 6. dxe5 {[%clk 0:02:48]}  Nxe4 {[%clk 0:02:57]} 7. Nxe4 {[%clk 0:02:48]}  dxe4 {[%clk 0:02:57]} 8. Qxd8+ {[%clk 0:02:49]}  Nxd8 {[%clk 0:02:55]} 9. Ng5 {[%clk 0:02:48]}  Bf5 {[%clk 0:02:55]} 10. g4 {[%clk 0:02:35]}  Bxg4 {[%clk 0:02:54]} 11. Bg2 {[%clk 0:02:35]}  Bf5 {[%clk 0:02:51]} 12. Nxe4 {[%clk 0:02:32]}  Nc6 {[%clk 0:02:48]} 13. Bf4 {[%clk 0:02:31]}  Nd4 {[%clk 0:02:46]} 14. O-O-O {[%clk 0:02:30]}  Ne2+ {[%clk 0:02:44]} 15. Kb1 {[%clk 0:02:29]}  Nxf4 {[%clk 0:02:45]} 16. Bf3 {[%clk 0:02:29]}  Bxe4 {[%clk 0:02:40]} 17. Bxe4 {[%clk 0:02:30]}  c6 {[%clk 0:02:40]} 18. Rd4 {[%clk 0:02:28]}  Ne6 {[%clk 0:02:39]} 19. Rc4 {[%clk 0:02:21]}  O-O-O {[%clk 0:02:37]} 20. Rf1 {[%clk 0:02:11]}  g5 {[%clk 0:02:36]} 21. Bf5 {[%clk 0:02:11]}  Kc7 {[%clk 0:02:35]} 22. Rg1 {[%clk 0:02:08]}  h6 {[%clk 0:02:34]} 23. h4 {[%clk 0:02:05]}  Be7 {[%clk 0:02:34]} 24. h5 {[%clk 0:01:59]}  Rd5 {[%clk 0:02:33]} 25. Re4 {[%clk 0:01:54]}  Rhd8 {[%clk 0:02:32]} 26. Kc1 {[%clk 0:01:54]}  Rd4 {[%clk 0:02:31]} 27. Re3 {[%clk 0:01:52]}  Nf4 {[%clk 0:02:30]} 28. c3 {[%clk 0:01:48]}  R4d5 {[%clk 0:02:30]} 29. Kc2 {[%clk 0:01:41]}  Bc5 {[%clk 0:02:28]} 30. Re4 {[%clk 0:01:36]}  Rd2+ {[%clk 0:02:27]} 31. Kb3 {[%clk 0:01:36]}  Bxf2 {[%clk 0:02:28]} 32. Rf1 {[%clk 0:01:36]}  Nd3 {[%clk 0:02:28]} 33. Ka2 {[%clk 0:01:09]}  Nc5 {[%clk 0:02:29]} 34. Rc4 {[%clk 0:01:07]}  b5 {[%clk 0:02:29]} 35. Rxf2 {[%clk 0:01:07]}  bxc4 {[%clk 0:02:28]} 0-1


[Site "https://www.chess.com"]

[Event "Titled Tuesday Blitz February 22 Early 2022"]
[White "Yuan, Qingyu"]
[Black "Oparin, Grigoriy"]
[WhiteFideId "8609772"]
[BlackFideId "24125890"]
[WhiteElo "2359"]
[BlackElo "2685"]
[Result "0-1"]
[Round "10"]
[TimeControl "180+1"]
[Date "2022.02.22"]
[WhiteClock "0:00:02"]
[BlackClock "0:00:52"]

1. Nf3 {[%clk 0:03:00]}  c5 {[%clk 0:02:59]} 2. g3 {[%clk 0:03:01]}  Nf6 {[%clk 0:02:59]} 3. Bg2 {[%clk 0:03:01]}  d5 {[%clk 0:02:57]} 4. O-O {[%clk 0:03:01]}  e6 {[%clk 0:02:56]} 5. d3 {[%clk 0:03:01]}  Be7 {[%clk 0:02:55]} 6. Nbd2 {[%clk 0:03:02]}  b6 {[%clk 0:02:56]} 7. e4 {[%clk 0:03:01]}  Bb7 {[%clk 0:02:56]} 8. Qe2 {[%clk 0:02:53]}  Nc6 {[%clk 0:02:56]} 9. Re1 {[%clk 0:02:47]}  O-O {[%clk 0:02:54]} 10. c3 {[%clk 0:02:38]}  b5 {[%clk 0:02:52]} 11. e5 {[%clk 0:02:35]}  Nd7 {[%clk 0:02:52]} 12. Nf1 {[%clk 0:02:35]}  b4 {[%clk 0:02:52]} 13. h4 {[%clk 0:02:33]}  bxc3 {[%clk 0:02:49]} 14. bxc3 {[%clk 0:02:33]}  a5 {[%clk 0:02:49]} 15. h5 {[%clk 0:02:33]}  Ba6 {[%clk 0:02:47]} 16. h6 {[%clk 0:02:32]}  g6 {[%clk 0:02:47]} 17. N1h2 {[%clk 0:02:32]}  Rb8 {[%clk 0:02:48]} 18. Ng4 {[%clk 0:02:32]}  Re8 {[%clk 0:02:45]} 19. Bf4 {[%clk 0:02:21]}  a4 {[%clk 0:02:44]} 20. Qd2 {[%clk 0:02:17]}  a3 {[%clk 0:02:43]} 21. Rab1 {[%clk 0:02:16]}  Qa5 {[%clk 0:02:24]} 22. Bg5 {[%clk 0:02:10]}  Bf8 {[%clk 0:02:24]} 23. Bf6 {[%clk 0:01:52]}  Rb2 {[%clk 0:02:08]} 24. Rxb2 {[%clk 0:01:44]}  axb2 {[%clk 0:02:09]} 25. Qxb2 {[%clk 0:01:45]}  Bxd3 {[%clk 0:02:07]} 26. Qb7 {[%clk 0:01:40]}  Ncb8 {[%clk 0:02:04]} 27. Ng5 {[%clk 0:01:33]}  Qxc3 {[%clk 0:02:01]} 28. Re3 {[%clk 0:01:27]}  Qc4 {[%clk 0:01:59]} 29. Bf3 {[%clk 0:01:08]}  Bf5 {[%clk 0:01:55]} 30. Nh2 {[%clk 0:01:04]}  Bxh6 {[%clk 0:01:49]} 31. Rb3 {[%clk 0:00:51]}  Qc1+ {[%clk 0:01:36]} 32. Kg2 {[%clk 0:00:50]}  Bxg5 {[%clk 0:01:36]} 33. g4 {[%clk 0:00:24]}  Bc2 {[%clk 0:01:24]} 34. Rc3 {[%clk 0:00:24]}  Bxf6 {[%clk 0:01:21]} 35. exf6 {[%clk 0:00:23]}  Nxf6 {[%clk 0:01:22]} 36. Qb5 {[%clk 0:00:19]}  Qd2 {[%clk 0:01:18]} 37. Rxc5 {[%clk 0:00:17]}  Nbd7 {[%clk 0:01:16]} 38. Rc7 {[%clk 0:00:17]}  Be4 {[%clk 0:01:14]} 39. Rxd7 {[%clk 0:00:15]}  Nxd7 {[%clk 0:01:13]} 40. Qxd7 {[%clk 0:00:16]}  Ra8 {[%clk 0:01:14]} 41. Bxe4 {[%clk 0:00:16]}  Rxa2 {[%clk 0:01:13]} 42. Qd8+ {[%clk 0:00:09]}  Kg7 {[%clk 0:01:11]} 43. Qh4 {[%clk 0:00:05]}  dxe4 {[%clk 0:01:10]} 44. g5 {[%clk 0:00:05]}  e3 {[%clk 0:01:09]} 45. Ng4 {[%clk 0:00:05]}  Qd5+ {[%clk 0:00:52]} 46. Kh2 {[%clk 0:00:04]}  Rxf2+ {[%clk 0:00:51]} 47. Nxf2 {[%clk 0:00:03]}  exf2 {[%clk 0:00:52]} 48. Qxf2 {[%clk 0:00:02]}  Qxg5 {[%clk 0:00:52]} 49. Qe3 {[%clk 0:00:02]}  Qxe3 {[%clk 0:00:52]} 0-1


[Site "https://www.chess.com"]